[Event "Szczawno Festival IM 2018"]
[Site "Szczawno"]
[Date "2018.12.15"]
[Round "2"]
[White "Gritsak, Orest"]
[Black "Delorme, Axel"]
[Result "1/2-1/2"]
[ECO "D58"]
[WhiteElo "2467"]
[BlackElo "2510"]
[Annotator "ChessBase"]
[PlyCount "23"]
[EventDate "2018.12.14"]
[EventType "tourn"]
[EventCountry "POL"]
[SourceTitle "playchess.com"]
[Source "ChessBase"]
[SourceQuality "1"]
[TimeControl "40/5400+30:900+30"]

1. d4 {[%emt 0:00:04]} Nf6 {[%emt 0:00:00]} 2. c4 {[%emt 0:00:24]} e6 {[%emt 0:00:00]} 3. Nc3 {[%emt 0:01:14]} d5 {[%emt 0:00:16]} 4. Bg5 {[%emt 0:00:41]} Be7 {[%emt 0:00:47]} 5. e3 {[%emt 0:00:57]} O-O {[%emt 0:00:53]} 6. Nf3 {[%emt 0:01:48]} h6 {[%emt 0:00:25]} 7. Bh4 {[%emt 0:04:42]} b6 {[%emt 0:03:15]} 8. Be2 {[%emt 0:03:33]} Bb7 {[%emt 0:04:24]} 9. Bxf6 {[%emt 0:00:23]} Bxf6 {[%emt 0:00:11]} 10. cxd5 {[%emt 0:00:06]} exd5 {[%emt 0:00:05]} 11. b4 {[%emt 0:00:14]} c6 {[%emt 0:00:18]} 12. O-O {[%emt 0:00:25]} 1/2-1/2

[Event "Szczawno Festival IM 2018"]
[Site "Szczawno"]
[Date "2018.12.15"]
[Round "2"]
[White "Karpus, Michal"]
[Black "Fus, Jakub"]
[Result "1/2-1/2"]
[ECO "C91"]
[WhiteElo "2355"]
[BlackElo "2265"]
[Annotator "NA"]
[PlyCount "69"]
[EventDate "2018.12.14"]
[EventType "tourn"]
[EventCountry "POL"]
[SourceTitle "playchess.com"]
[Source "ChessBase"]
[SourceQuality "1"]
[TimeControl "40/5400+30:900+30"]

1. e4 {[%emt 0:00:00]} e5 {[%emt 0:00:00]} 2. Nf3 {[%emt 0:00:00]} Nc6 {[%emt 0:00:02]} 3. Bb5 {[%emt 0:00:00]} a6 {[%emt 0:00:15]} 4. Ba4 {[%emt 0:00:10]} Nf6 {[%emt 0:00:16]} 5. O-O {[%emt 0:00:11]} Be7 {[%emt 0:00:12]} 6. Re1 {[%emt 0:00:15]} b5 {[%emt 0:00:22]} 7. Bb3 {[%emt 0:00:11]} O-O {[%emt 0:00:13]} 8. d4 {[%emt 0:02:39]} d6 {[%emt 0:01:19]} 9. c3 {[%emt 0:00:33]} Bg4 {[%emt 0:00:09]} 10. Be3 {[%emt 0:00:15]} Bh5 {[%emt 0:00:13]} 11. h3 {[%emt 0:01:34] C91: Closed Ruy Lopez: 7...d6 8 c3 0-0 9 d4} exd4 {[%emt 0:00:31]} (11... a5 12. a4 exd4 13. Bxd4 b4 14. Nbd2 Rb8 15. Rc1 Nd7 16. Qc2 bxc3 17. bxc3 Nce5 18. Nxe5 dxe5 {½-½ (33) Grandelius,N (2651)-Morozevich,A (2665) Malmo 2018}) 12. cxd4 {[%emt 0:00:10]} Na5 {[%emt 0:00:45]} 13. Bc2 {[%emt 0:00:37]} Nc4 {[%emt 0:00:29] LiveBook: 41 Games} 14. Bc1 {[%emt 0:00:52]} d5 {[%emt 0:00:29]} 15. e5 {[%emt 0:01:34]} Ne4 {[%emt 0:00:19]} 16. a4 {[%emt 0:07:47]} c5 $146 {[%emt 0:21:31]} ({Predecessor:} 16... f5 17. Qd3 c6 18. b3 Nb6 19. axb5 axb5 20. Rxa8 Nxa8 {0-1 (51) Ocampo,R-Hase,J Mar del Plata 1968}) 17. b3 {[%emt 0:06:00] [#]} (17. Nc3 $11 Nxc3 18. bxc3) 17... Na5 $1 {[%emt 0:05:09]} 18. dxc5 {[%emt 0:15:43]} Bxc5 {[%emt 0:01:01]} 19. Be3 {[%emt 0:01:10]} Bb4 {[%emt 0:12:20]} 20. Rf1 {[%emt 0:04:41]} Rc8 {[%emt 0:13:22]} 21. axb5 {[%emt 0:07:12]} axb5 {[%emt 0:00:54]} 22. Bd3 {[%emt 0:08:47]} d4 {[%emt 0:08:20]} 23. Bxd4 {[%emt 0:06:05] [#]} Bxf3 $2 {[%emt 0:05:55]} (23... Ng5 $1 $19 24. Be3 Nxf3+ 25. gxf3 Qh4) 24. Qxf3 {[%emt 0:00:29]} Qxd4 {[%emt 0:00:06]} 25. Qxe4 {[%emt 0:00:17]} Qxe4 {[%emt 0:00:12]} 26. Bxe4 {[%emt 0:00:10]} Nxb3 {[%emt 0:00:44]} 27. Ra2 {[%emt 0:02:24]} Nd4 {[%emt 0:02:56]} 28. f4 {[%emt 0:10:59]} Rfd8 {[%emt 0:05:32]} 29. Kh1 {[%emt 0:03:10]} Bf8 {[%emt 0:04:26]} 30. Nd2 {[%emt 0:01:49]} Ne2 {[%emt 0:01:49]} 31. Rf3 {[%emt 0:05:49]} Nc3 {[%emt 0:07:46]} ({Black should play} 31... Bb4 $17 32. Nf1 Nd4) 32. Rc2 {[%emt 0:01:14]} Nxe4 {[%emt 0:02:07]} 33. Rxc8 {[%emt 0:00:39]} Rxc8 {[%emt 0:01:58]} ({Of course not} 33... Rxd2 $6 34. Ra3 $16) 34. Nxe4 {[%emt 0:00:08]} Rc4 {[%emt 0:00:23]} 35. Nd2 $11 {[%emt 0:02:35]} 1/2-1/2

[Event "Szczawno Festival IM 2018"]
[Site "Szczawno"]
[Date "2018.12.15"]
[Round "2"]
[White "Krzywda, Andrzej"]
[Black "Chylewski, Patryk"]
[Result "0-1"]
[ECO "D30"]
[WhiteElo "2178"]
[BlackElo "2268"]
[Annotator "NA"]
[PlyCount "114"]
[EventDate "2018.12.14"]
[EventType "tourn"]
[EventCountry "POL"]
[SourceTitle "playchess.com"]
[Source "ChessBase"]
[SourceQuality "1"]
[TimeControl "40/5400+30:900+30"]

1. d4 {[%emt 0:00:00]} d5 {[%emt 0:00:00]} 2. c4 {[%emt 0:00:00]} e6 {[%emt 0:00:00]} 3. Nf3 {[%emt 0:00:00]} Nf6 {[%emt 0:00:54]} 4. g3 {[%emt 0:00:08]} Bb4+ {[%emt 0:00:15] LiveBook: 4993 Games} 5. Nbd2 {[%emt 0:00:34]} dxc4 {[%emt 0:00:57]} 6. Bg2 {[%emt 0:00:48]} b5 {[%emt 0:07:27] E04: Open Catalan: 5 Nf3} 7. O-O {[%emt 0:01:15]} O-O {[%emt 0:09:16]} 8. a4 {[%emt 0:01:12]} c6 {[%emt 0:02:11]} 9. Ne1 {[%emt 0:01:20]} Nd5 {[%emt 0:03:50]} 10. Nc2 {[%emt 0:01:11]} (10. e4 Nb6 11. a5 N6d7 12. e5 Bb7 13. Ne4 Na6 14. Bg5 {½-½ (44) Wang,H (2709)-Ding,L (2777) Huaian 2017}) 10... Be7 {[%emt 0:02:15]} 11. e4 {[%emt 0:03:37]} Nf6 {[%emt 0:02:55]} 12. g4 {[%emt 0:07:34]} Bb7 $146 {[%emt 0:04:28]} ({Predecessor:} 12... a5 13. g5 Ne8 14. e5 {1-0 (32) Percze,J (2543)-Schueppen,H (2422) ICCF email 2012}) 13. g5 {[%emt 0:05:54]} Nfd7 {[%emt 0:00:53]} 14. e5 {[%emt 0:01:00]} a6 {[%emt 0:12:01]} 15. Ne4 {[%emt 0:05:56]} Nb6 {[%emt 0:09:05]} 16. Qh5 {[%emt 0:08:16]} N8d7 {[%emt 0:10:38]} 17. Ne3 {[%emt 0:13:00]} Nd5 {[%emt 0:06:51]} 18. Ng4 {[%emt 0:01:29]} Kh8 $1 {[%emt 0:06:26]} 19. f4 {[%emt 0:11:31]} Qe8 {[%emt 0:03:33]} 20. Qh4 {[%emt 0:25:21]} Rg8 {[%emt 0:06:11]} 21. f5 {[%emt 0:05:53]} exf5 {[%emt 0:02:21]} 22. Rxf5 {[%emt 0:00:01]} Nf8 {[%emt 0:06:54]} 23. Rf3 {[%emt 0:01:00]} b4 {[%emt 0:00:51]} 24. Bd2 {[%emt 0:02:43]} Bc8 {[%emt 0:00:38]} 25. Raf1 {[%emt 0:00:23]} Be6 {[%emt 0:00:19]} 26. Kh1 {[%emt 0:00:51]} Qd7 {[%emt 0:00:51]} 27. Ne3 {[%emt 0:01:51]} Ng6 {[%emt 0:00:46]} 28. Qg3 {[%emt 0:00:19]} Nxe3 {[%emt 0:00:10]} 29. Bxe3 {[%emt 0:00:11]} Rab8 {[%emt 0:00:53]} 30. h4 {[%emt 0:00:23]} Bf8 {[%emt 0:00:32]} 31. h5 {[%emt 0:00:14]} Ne7 {[%emt 0:00:37]} 32. Nd6 {[%emt 0:00:19]} Nd5 {[%emt 0:00:26]} 33. Rxf7 {[%emt 0:00:57]} Qd8 {[%emt 0:00:32]} 34. R7f2 {[%emt 0:01:06]} Bxd6 {[%emt 0:00:21]} 35. exd6 {[%emt 0:00:02]} Nxe3 {[%emt 0:00:10]} 36. Qxe3 $17 {[%emt 0:00:12]} Qxd6 {[%emt 0:00:05]} 37. Kg1 {[%emt 0:01:23]} Bd5 {[%emt 0:00:22]} 38. Qe5 {[%emt 0:00:32]} Qxe5 {[%emt 0:00:41]} 39. dxe5 {[%emt 0:00:01]} Rbe8 {[%emt 0:00:41]} 40. Re1 {[%emt 0:00:00]} Re7 {[%emt 0:00:00]} 41. Rf4 {[%emt 0:07:07]} Rge8 {[%emt 0:04:18]} 42. Bf1 {[%emt 0:05:21]} Kg8 {[%emt 0:02:17]} 43. Bxc4 {[%emt 0:01:52]} Bxc4 {[%emt 0:00:37]} 44. Rxc4 {[%emt 0:00:02]} Rxe5 {[%emt 0:00:09]} 45. Rxe5 {[%emt 0:00:57]} Rxe5 {[%emt 0:00:03]} 46. Rg4 {[%emt 0:02:53]} c5 {[%emt 0:02:12]} 47. Kf2 {[%emt 0:00:05]} Kf7 {[%emt 0:00:24]} 48. Kf3 {[%emt 0:01:29]} Ke6 {[%emt 0:01:24]} 49. b3 {[%emt 0:00:41]} Kd5 {[%emt 0:02:08]} 50. a5 {[%emt 0:00:06]} Re1 {[%emt 0:02:38]} 51. g6 {[%emt 0:00:56]} h6 {[%emt 0:01:16]} 52. Kg2 {[%emt 0:00:32]} Re4 {[%emt 0:00:56]} 53. Rg3 {[%emt 0:00:21]} c4 {[%emt 0:00:11]} 54. bxc4+ {[%emt 0:00:20]} Kxc4 {[%emt 0:00:18]} 55. Kf3 {[%emt 0:00:39]} Re5 {[%emt 0:00:28]} 56. Kf4 {[%emt 0:00:35]} Rxh5 {[%emt 0:01:01]} 57. Ke4 {[%emt 0:00:10]} Rg5 {[%emt 0:00:30] Kd4+} 0-1

[Event "Szczawno Festival IM 2018"]
[Site "Szczawno"]
[Date "2018.12.15"]
[Round "2"]
[White "Tejaswini, Sagar"]
[Black "Sliwicka, Alicja"]
[Result "1/2-1/2"]
[ECO "C96"]
[WhiteElo "2177"]
[BlackElo "2236"]
[Annotator "NA"]
[PlyCount "70"]
[EventDate "2018.12.14"]
[EventType "tourn"]
[EventCountry "POL"]
[SourceTitle "playchess.com"]
[Source "ChessBase"]
[SourceQuality "1"]
[TimeControl "40/5400+30:900+30"]

1. e4 {[%emt 0:00:00]} e5 {[%emt 0:00:00]} 2. Nf3 {[%emt 0:00:00]} Nc6 {[%emt 0:00:00]} 3. Bb5 {[%emt 0:00:00]} a6 {[%emt 0:00:00]} 4. Ba4 {[%emt 0:00:00]} Nf6 {[%emt 0:00:01]} 5. O-O {[%emt 0:00:00]} Be7 {[%emt 0:00:06]} 6. Re1 {[%emt 0:00:00]} b5 {[%emt 0:00:06]} 7. Bb3 {[%emt 0:00:00]} d6 {[%emt 0:00:05]} 8. c3 {[%emt 0:00:02]} O-O {[%emt 0:00:09]} 9. h3 {[%emt 0:00:08]} Na5 {[%emt 0:00:06]} 10. Bc2 {[%emt 0:00:04]} c5 {[%emt 0:00:07]} 11. d4 {[%emt 0:00:15] LiveBook: 6682 Games} Nd7 {[%emt 0:00:07]} 12. Nbd2 {[%emt 0:00:17]} exd4 {[%emt 0:00:13]} 13. cxd4 {[%emt 0:00:06]} Nc6 {[%emt 0:00:07]} 14. d5 {[%emt 0:00:24]} Nce5 {[%emt 0:00:06]} 15. Nxe5 {[%emt 0:00:12] C96: Closed Ruy Lopez: Chigorin Defence: 11 d4, replies other than 11...Qc7} (15. a4 Bb7 16. Nxe5 Nxe5 17. f4 Ng6 18. Nf3 Re8 19. axb5 axb5 20. Rxa8 Qxa8 21. b3 Bd8 22. f5 Nf8 {1-0 (54) Shirov,A (2630)-Howell,D (2701) Douglas 2017}) 15... Nxe5 {[%emt 0:00:06]} 16. a4 {[%emt 0:00:32]} Rb8 {[%emt 0:08:43]} 17. f4 {[%emt 0:00:16]} Ng6 {[%emt 0:00:34]} 18. Nf3 {[%emt 0:00:21]} f5 {[%emt 0:01:59]} 19. exf5 {[%emt 0:00:53]} Bxf5 {[%emt 0:01:10]} 20. Bxf5 {[%emt 0:02:15]} Rxf5 {[%emt 0:00:11]} 21. g4 $146 {[%emt 0:02:25]} ({Predecessor:} 21. axb5 axb5 22. g4 Rf7 {1-0 (68) Christiansen,J (2498)-Spalir,J (2363) Budapest 2018}) 21... Rxf4 {[%emt 0:01:57]} 22. Bxf4 {[%emt 0:00:27]} Nxf4 {[%emt 0:00:07]} 23. Qd2 {[%emt 0:01:41]} Nxh3+ {[%emt 0:14:22]} 24. Kg2 {[%emt 0:01:57]} Ng5 {[%emt 0:09:39]} 25. axb5 {[%emt 0:15:51]} Nxf3 {[%emt 0:02:18]} 26. Kxf3 {[%emt 0:00:11]} Rxb5 {[%emt 0:13:58]} 27. Qe2 {[%emt 0:07:00]} Bf8 {[%emt 0:09:43]} 28. Qe6+ {[%emt 0:07:56]} Kh8 {[%emt 0:00:08]} 29. Qf7 {[%emt 0:03:59]} Rb8 {[%emt 0:05:03]} 30. Re3 {[%emt 0:21:23]} Qh4 {[%emt 0:01:47]} 31. b3 {[%emt 0:01:53]} Qh3+ {[%emt 0:08:04]} 32. Kf2 {[%emt 0:00:57]} Qh2+ {[%emt 0:01:16]} 33. Kf3 {[%emt 0:02:09]} Qh3+ {[%emt 0:02:49]} 34. Kf2 {[%emt 0:02:21]} Qh2+ {[%emt 0:01:33]} 35. Kf3 {[%emt 0:00:33]} Qh3+ $11 {[%emt 0:04:16]} 1/2-1/2

[Event "Szczawno Festival IM 2018"]
[Site "Szczawno"]
[Date "2018.12.16"]
[Round "3"]
[White "Sergeev, Vladimir"]
[Black "Tejaswini, Sagar"]
[Result "1-0"]
[ECO "A05"]
[WhiteElo "2402"]
[BlackElo "2177"]
[Annotator "NA"]
[PlyCount "121"]
[EventDate "2018.12.14"]
[EventType "tourn"]
[EventCountry "POL"]
[SourceTitle "playchess.com"]
[Source "ChessBase"]
[SourceQuality "1"]
[TimeControl "40/5400+30:900+30"]

1. Nf3 {[%emt 0:04:37]} Nf6 {[%emt 0:00:00]} 2. e3 {[%emt 0:00:30]} g6 {[%emt 0:00:00]} 3. b4 {[%emt 0:00:04]} Bg7 {[%emt 0:00:00]} 4. Bb2 {[%emt 0:00:03]} O-O {[%emt 0:01:35]} 5. c4 {[%emt 0:00:39]} d5 {[%emt 0:02:40]} 6. cxd5 {[%emt 0:00:36] A15: English Opening: 1...Nf6} Nxd5 {[%emt 0:00:36]} (6... Qxd5 7. Nc3 Qd8 8. Be2 Nbd7 9. O-O e5 10. d3 c6 11. a4 b6 12. Qb3 Re8 13. Rfd1 Qe7 {1-0 (41) Kurajica,B (2529)-Firat,B (2487) Izmir 2016}) 7. Bxg7 {[%emt 0:00:07]} Kxg7 {[%emt 0:00:04]} 8. Qb3 {[%emt 0:00:11]} e6 {[%emt 0:05:42]} 9. Be2 $146 {[%emt 0:00:56]} ({Predecessor:} 9. d4 c6 10. Nc3 Qb6 11. Nxd5 cxd5 12. a4 Nc6 13. Bb5 Nxb4 14. Qxb4 a6 15. Kd2 axb5 16. a5 Qa6 17. Rhc1 f6 18. Rc7+ Rf7 19. Re7 Bd7 20. Rc1 Qxa5 {1-0 (20) Dickson,I (1910)-Mendege,A (1861) Budapest 2006}) 9... Nd7 {[%emt 0:03:05]} 10. Nc3 {[%emt 0:03:09]} N7f6 {[%emt 0:03:37]} 11. O-O {[%emt 0:00:24]} Re8 {[%emt 0:04:44]} 12. d4 {[%emt 0:04:37]} Nxc3 {[%emt 0:13:57]} 13. Qxc3 {[%emt 0:02:04]} Nd5 {[%emt 0:00:11]} 14. Qb2 {[%emt 0:00:12]} g5 {[%emt 0:06:23]} 15. Rac1 {[%emt 0:01:49]} f6 {[%emt 0:00:48]} 16. Rfd1 {[%emt 0:01:42]} Bd7 {[%emt 0:04:19]} 17. Rd2 {[%emt 0:01:23]} a6 {[%emt 0:06:00]} 18. Rdc2 {[%emt 0:26:02]} Ba4 {[%emt 0:05:19]} 19. Rc5 {[%emt 0:01:09]} b6 {[%emt 0:02:00]} 20. R5c4 {[%emt 0:00:13]} Bb5 {[%emt 0:01:43]} 21. R4c2 {[%emt 0:00:03]} Bxe2 {[%emt 0:02:08]} 22. Rxe2 {[%emt 0:00:04]} g4 {[%emt 0:02:19]} 23. Ne1 {[%emt 0:00:38]} h5 {[%emt 0:02:36]} 24. Nd3 {[%emt 0:00:12]} h4 {[%emt 0:02:13]} 25. e4 {[%emt 0:01:50]} Ne7 {[%emt 0:00:18]} 26. Nf4 {[%emt 0:00:43]} Ng6 {[%emt 0:01:13]} 27. Qd2 {[%emt 0:01:04]} Rc8 {[%emt 0:08:21]} 28. Nxg6 {[%emt 0:15:58]} Kxg6 {[%emt 0:00:04]} 29. Qf4 {[%emt 0:00:18]} Qxd4 {[%emt 0:04:44]} 30. Qxg4+ {[%emt 0:00:14]} Kf7 {[%emt 0:00:15]} 31. Qh5+ {[%emt 0:00:11]} Kg7 {[%emt 0:01:30]} 32. Qxh4 {[%emt 0:00:15]} Qxb4 $2 {[%emt 0:01:33]} (32... Qe5 33. f4 Qd4+ 34. Kh1 Rh8 35. Qg3+ Kf8) 33. Re3 {[%emt 0:00:44]} Rh8 {[%emt 0:04:06]} 34. Qg4+ {[%emt 0:04:44]} Kf7 {[%emt 0:00:13]} 35. Rg3 {[%emt 0:00:14]} Rhf8 {[%emt 0:02:56]} 36. Rd3 $18 {[%emt 0:14:54]} (36. Qh5+ $142 Ke7 37. Rg7+ Kd8 38. Rd1+ Qd6 39. e5 {[%mdl 64] Pin} Rg8 40. Rxg8+ Kd7 41. exd6) 36... Qb5 {[%emt 0:08:03]} 37. Rcd1 {[%emt 0:03:23]} Rce8 {[%emt 0:00:04]} 38. h3 {[%emt 0:06:57]} Re7 {[%emt 0:01:25]} 39. f4 {[%emt 0:00:28]} Rg8 {[%emt 0:00:30]} 40. Qh4 {[%emt 0:00:00]} Qc5+ {[%emt 0:00:00]} 41. Kh2 {[%emt 0:01:25]} a5 {[%emt 0:08:43]} 42. a4 {[%emt 0:02:40]} b5 {[%emt 0:00:43]} 43. Rd8 {[%emt 0:02:21]} Rg6 {[%emt 0:05:45]} 44. Kh1 {[%emt 0:11:55]} Qc2 {[%emt 0:01:18]} 45. Qh7+ {[%emt 0:00:22]} Rg7 {[%emt 0:00:04]} 46. Qh5+ {[%emt 0:00:04]} Rg6 {[%emt 0:00:06]} 47. Qf3 {[%emt 0:00:31]} f5 {[%emt 0:02:22]} 48. exf5 {[%emt 0:02:15]} Qxf5 {[%emt 0:00:02]} 49. Qa8 {[%emt 0:01:11]} Kg7 {[%emt 0:01:39]} 50. axb5 Qxf4 {[%emt 0:00:36]} 51. Rg8+ {[%emt 0:02:35]} Kh6 {[%emt 0:00:05]} 52. Rh8+ {[%emt 0:00:36]} Rh7 {[%emt 0:00:09]} 53. Rf8 {[%emt 0:00:49]} Qg3 {[%emt 0:00:45]} 54. Rdf1 {[%emt 0:00:45]} a4 {[%emt 0:00:45]} 55. R8f6 {[%emt 0:00:19]} Rhg7 {[%emt 0:00:56]} 56. Qh8+ {[%emt 0:00:21]} Kg5 {[%emt 0:00:11]} 57. R6f4 {[%emt 0:00:49]} Qxf4 {[%emt 0:01:00]} 58. Qd8+ {[%emt 0:00:05]} Qf6 {[%emt 0:00:45]} 59. h4+ {[%emt 0:00:04]} Kh5 {[%emt 0:00:38]} 60. Rxf6 {[%emt 0:00:07]} Rxg2 {[%emt 0:00:42]} 61. Qh8+ {[%emt 0:00:17]} 1-0

[Event "Szczawno Festival IM 2018"]
[Site "Szczawno"]
[Date "2018.12.16"]
[Round "3"]
[White "Pacan-Milej, Kosma"]
[Black "Simantsev, Mikhail"]
[Result "1/2-1/2"]
[ECO "E15"]
[WhiteElo "2334"]
[BlackElo "2404"]
[Annotator "ChessBase"]
[PlyCount "60"]
[EventDate "2018.12.14"]
[EventType "tourn"]
[EventCountry "POL"]
[SourceTitle "playchess.com"]
[Source "ChessBase"]
[SourceQuality "1"]
[TimeControl "40/5400+30:900+30"]

1. d4 {[%emt 0:00:00]} Nf6 {[%emt 0:05:28]} 2. c4 {[%emt 0:00:00]} e6 {[%emt 0:00:32]} 3. Nf3 {[%emt 0:00:00]} b6 {[%emt 0:02:14]} 4. g3 {[%emt 0:00:00]} Ba6 {[%emt 0:01:05]} 5. b3 {[%emt 0:00:00]} Bb4+ {[%emt 0:00:33]} 6. Bd2 {[%emt 0:00:07]} Be7 {[%emt 0:00:03]} 7. Nc3 {[%emt 0:00:10]} d5 {[%emt 0:03:45]} 8. cxd5 {[%emt 0:00:20]} exd5 {[%emt 0:00:05]} 9. Bg2 {[%emt 0:00:45]} O-O {[%emt 0:00:10]} 10. O-O {[%emt 0:00:54]} Nbd7 {[%emt 0:00:31]} 11. Ne5 {[%emt 0:03:21]} Bb7 {[%emt 0:01:30]} 12. Bf4 {[%emt 0:02:01]} Re8 {[%emt 0:01:58]} 13. Rc1 {[%emt 0:08:08]} Nf8 {[%emt 0:04:41]} 14. Nb5 {[%emt 0:06:19]} c5 {[%emt 0:07:52]} 15. dxc5 {[%emt 0:05:25]} bxc5 {[%emt 0:05:48]} 16. Nc4 {[%emt 0:08:29]} Ne6 {[%emt 0:01:12]} 17. Be5 {[%emt 0:19:20]} Ng4 {[%emt 0:11:07]} 18. Nbd6 {[%emt 0:16:20]} dxc4 {[%emt 0:04:54]} 19. Bxb7 {[%emt 0:02:00]} Nxe5 {[%emt 0:01:03]} 20. Nxe8 {[%emt 0:01:02]} Qxd1 {[%emt 0:02:31]} 21. Rfxd1 {[%emt 0:00:08]} Rxe8 {[%emt 0:00:05]} 22. bxc4 {[%emt 0:00:04]} g5 {[%emt 0:36:23]} 23. Bd5 {[%emt 0:09:14]} Nd4 {[%emt 0:02:51]} 24. Kf1 {[%emt 0:01:30]} Bd8 {[%emt 0:01:07]} 25. e3 {[%emt 0:01:46]} Ne6 {[%emt 0:00:56]} 26. Bxe6 {[%emt 0:04:48]} fxe6 {[%emt 0:00:01]} 27. f4 {[%emt 0:00:00]} Ng4 {[%emt 0:03:35]} 28. Ke2 Nf6 {[%emt 0:00:38]} 29. fxg5 {[%emt 0:05:58]} Ne4 30. Rd7 Bb6 {[%emt 0:01:45]} 1/2-1/2